bitfinex/quotes_BTCUSD_20241101
["timestamp","ask_amount","ask_price","bid_price","bid_amount"]
[1730481602339,0.17757378,70142.0,70141.0,0.00033994]
[1730481602840,0.43017694,70142.0,70141.0,0.01033994]
[1730481603097,0.29272169,70142.0,70141.0,0.02133994]
[1730481603320,0.31365503,70142.0,70141.0,0.01133994]
[1730481603546,0.31366344,70142.0,70141.0,0.01133994]
[1730481604284,0.31266344,70142.0,70141.0,0.00033994]
[1730481604529,0.2907301,70142.0,70141.0,0.00033994]
[1730481605226,0.2907301,70142.0,70141.0,0.00133994]
[1730481605227,0.2977301,70142.0,70141.0,0.00133994]
[1730481605448,0.2967301,70142.0,70141.0,0.00033994]
[1730481605695,0.43518535,70142.0,70141.0,0.00033994]
[1730481605927,0.7701473,70142.0,70141.0,0.00033994]
[1730481606176,1.01021958,70142.0,70141.0,9.4e-07]
[1730481606415,0.142608,70122.0,70121.0,0.21386562]
[1730481606639,0.72102122,70122.0,70121.0,0.21386562]
[1730481606887,0.72102122,70122.0,70121.0,0.00962035]
[1730481607151,0.142626,70113.0,70104.0,0.21550962]
[1730481607373,0.19001169,70113.0,70112.0,0.22359995]
[1730481607595,0.19001169,70113.0,70112.0,0.00973433]
[1730481608095,0.19001169,70113.0,70104.0,0.21550962]
[1730481608096,0.285261,70111.0,70104.0,0.21550962]
[1730481608340,0.04738569,70110.0,70104.0,0.21550962]
[1730481608567,0.04738569,70109.0,70105.0,0.00982301]
[1730481608794,0.01316269,70108.0,70106.0,0.14264]
[1730481609018,0.0219453,70118.0,70106.0,0.14264]
[1730481609019,0.01316269,70107.0,70106.0,0.142641]
[1730481609244,0.01316269,70107.0,70106.0,0.2262755]
[1730481609501,0.01316269,70107.0,70106.0,0.23608584]
[1730481610395,0.01316269,70107.0,70106.0,0.24108584]
[1730481610862,0.01316269,70107.0,70106.0,0.01481034]
[1730481611355,0.01316269,70107.0,70106.0,0.15745134]
[1730481611609,0.142615,70119.0,70107.0,0.285278]
[1730481611833,0.21386562,70117.0,70108.0,0.13845525]
[1730481612058,0.04752955,70116.0,70108.0,0.009785]
[1730481612279,0.142629,70112.0,70108.0,0.009785]
[1730481612496,0.01320258,70111.0,70108.0,0.009785]
[1730481612730,0.15583658,70110.0,70108.0,0.009785]
[1730481612968,0.15583758,70109.0,70108.0,0.009785]
[1730481613192,0.01320258,70109.0,70108.0,0.009785]
[1730481614151,0.01320258,70109.0,70108.0,0.28612949]
[1730481614639,0.01320258,70109.0,70108.0,0.28912949]
[1730481614867,0.01320258,70109.0,70108.0,0.14649249]
[1730481615093,0.01320258,70109.0,70108.0,0.009785]
[1730481615320,0.15583758,70109.0,70108.0,0.009785]
[1730481615544,0.15683758,70109.0,70108.0,0.020785]
[1730481615779,0.01420258,70109.0,70108.0,0.011]
[1730481616030,0.01320258,70109.0,70108.0,0.009785]
[1730481616248,0.15683758,70109.0,70108.0,0.017785]
[1730481616492,0.17896172,70109.0,70108.0,0.021]
[1730481616712,0.17798345,70109.0,70108.0,0.013]
[1730481616946,0.17898345,70109.0,70108.0,0.02]
[1730481617690,0.17798345,70109.0,70108.0,0.007]
[1730481618167,0.17898345,70109.0,70108.0,0.017]
[1730481618673,0.142643,70105.0,70104.0,0.001644]
[1730481618924,0.15585394,70105.0,70104.0,0.001644]
[1730481619391,0.15585394,70105.0,70104.0,0.01147967]
[1730481619888,0.142643,70105.0,70104.0,0.01147967]
[1730481620106,0.15583821,70105.0,70104.0,0.01147967]
[1730481620354,0.15583821,70105.0,70104.0,0.01547967]
[1730481620573,0.15583821,70105.0,70104.0,0.01147967]
[1730481620802,0.19014515,70105.0,70104.0,0.01147967]
[1730481621042,0.16903281,70105.0,70104.0,0.01447967]
[1730481621548,0.15583821,70105.0,70104.0,0.01147967]
[1730481621790,0.15583821,70105.0,70104.0,0.01347967]
[1730481622547,0.15583821,70105.0,70104.0,0.01147967]
[1730481622774,0.191148,70105.0,70104.0,0.01147967]
[1730481623001,0.16903566,70105.0,70104.0,0.01447967]
[1730481623220,0.190148,70105.0,70104.0,0.01747967]
[1730481623444,0.190148,70105.0,70104.0,0.01447967]
[1730481623668,0.16903566,70105.0,70104.0,0.01447967]
[1730481623885,0.190148,70105.0,70104.0,0.01947967]
[1730481624101,0.16903566,70105.0,70104.0,0.01947967]
[1730481624314,0.190148,70105.0,70104.0,0.01947967]
[1730481624539,0.16903566,70105.0,70104.0,0.01647967]
[1730481624758,0.190148,70105.0,70104.0,0.01647967]
[1730481624995,0.16903566,70105.0,70104.0,0.01147967]
[1730481625257,0.193148,70105.0,70104.0,0.01947967]
[1730481625484,0.43160325,70105.0,70104.0,0.01947967]
[1730481625720,0.49395722,70105.0,70104.0,0.01147967]
[1730481625941,0.45262492,70105.0,70104.0,0.01147967]
[1730481626191,0.43062132,70105.0,70104.0,0.01247967]
[1730481626715,0.73948206,70105.0,70104.0,0.01247967]
[1730481627186,0.70310667,70105.0,70104.0,0.00920111]
[1730481627410,0.74707185,70105.0,70104.0,0.00820111]
[1730481627650,0.242651,70101.0,70100.0,0.75]
[1730481627864,0.45161588,70101.0,70100.0,0.75]
[1730481628112,0.43841868,70101.0,70100.0,0.75]
[1730481629118,0.47978063,70101.0,70100.0,0.57473812]
[1730481629336,3.88328063,70101.0,70100.0,0.31043812]
[1730481629553,1.19328063,70101.0,70100.0,0.31143812]
[1730481629769,1.20728063,70101.0,70100.0,0.25537612]
[1730481630008,1.09428063,70101.0,70100.0,0.22684512]
[1730481630229,0.49891868,70101.0,70100.0,0.22584512]
[1730481631125,0.49810526,70101.0,70100.0,0.22484512]
[1730481631575,0.52610526,70101.0,70100.0,0.22684512]
[1730481631794,0.56746721,70101.0,70100.0,0.22684512]
[1730481632039,0.47960526,70101.0,70100.0,0.22684512]
[1730481632258,0.35660526,70101.0,70100.0,0.22684512]
[1730481633503,0.21471123,70101.0,70100.0,0.22584512]
[1730481633968,0.31471123,70101.0,70100.0,0.22584512]
[1730481634190,0.30071123,70101.0,70100.0,0.22648912]
[1730481634664,0.31471123,70101.0,70100.0,0.22748912]
[1730481634888,0.21471123,70101.0,70100.0,0.22748912]
[1730481635143,0.20071123,70101.0,70100.0,0.30638912]
[1730481635370,0.20815001,70101.0,70100.0,0.30738912]
[1730481635811,0.19415001,70101.0,70100.0,0.30638912]
[1730481636041,0.20415001,70101.0,70100.0,0.30738912]
[1730481636275,0.20415001,70101.0,70100.0,0.31038912]
[1730481636819,0.20415001,70101.0,70100.0,0.31138912]
[1730481637040,0.06149901,70101.0,70100.0,0.31138912]
[1730481637498,0.014,70101.0,70100.0,0.45404212]
[1730481637939,0.04045406,70101.0,70100.0,0.45404212]
[1730481638653,0.16987803,70101.0,70100.0,0.31138912]
[1730481638901,0.20426826,70101.0,70100.0,0.31138912]
[1730481639150,0.21484915,70101.0,70100.0,0.31138912]
[1730481639606,0.35636024,70101.0,70100.0,0.23148912]
[1730481639824,0.287626,70101.0,70100.0,0.23048912]
[1730481640038,0.30085688,70101.0,70100.0,0.23048912]
[1730481640291,0.30185688,70101.0,70100.0,0.23048912]
[1730481640528,0.30185688,70101.0,70100.0,0.22648912]
[1730481641009,0.25688276,70101.0,70100.0,0.23048912]
[1730481641225,0.30087075,70101.0,70100.0,0.23048912]
[1730481641441,0.30087075,70101.0,70100.0,0.22648912]
[1730481641911,0.30287075,70101.0,70100.0,0.22648912]
[1730481642121,0.30787075,70101.0,70100.0,0.22648912]
[1730481642336,0.30087075,70101.0,70100.0,0.22648912]
[1730481642554,0.20587075,70101.0,70100.0,0.22648912]
[1730481642781,0.21487075,70101.0,70100.0,0.22748912]
[1730481643014,0.06321975,70101.0,70100.0,0.22648912]
[1730481643232,0.06321975,70101.0,70100.0,0.54674212]
[1730481643449,0.06422472,70101.0,70100.0,0.54674212]
[1730481643678,0.05363434,70101.0,70100.0,0.54674212]
[1730481644597,0.04863434,70101.0,70100.0,0.54674212]
[1730481644826,0.04863434,70101.0,70100.0,0.54874212]
[1730481645044,0.04763434,70101.0,70100.0,0.54874212]
[1730481645257,0.04763434,70101.0,70100.0,0.54674212]
[1730481645472,0.05822914,70101.0,70100.0,0.54674212]
[1730481645704,0.04863434,70101.0,70100.0,0.55474212]
[1730481645936,0.04863434,70101.0,70100.0,0.55974212]
[1730481646156,0.05923019,70101.0,70100.0,0.55974212]
[1730481646811,0.20188119,70101.0,70100.0,0.41708912]
[1730481647031,0.22393977,70101.0,70100.0,0.41708912]
[1730481647458,0.08128877,70101.0,70100.0,0.41708912]
[1730481647672,0.05923019,70101.0,70100.0,0.55974212]
[1730481647908,0.001,70101.0,70100.0,0.55974212]
[1730481648153,0.0593194,70101.0,70100.0,0.55974212]
[1730481648378,0.05932531,70101.0,70100.0,0.55974212]
[1730481648604,0.20197631,70101.0,70100.0,0.41708912]
[1730481648813,0.22406697,70101.0,70100.0,0.41708912]
[1730481649018,0.20197631,70101.0,70100.0,0.41708912]
[1730481649470,0.20197631,70101.0,70100.0,0.23948912]
[1730481649897,0.3434874,70101.0,70100.0,0.23948912]
[1730481650114,0.30197631,70101.0,70100.0,0.23948912]
[1730481650575,0.44043156,70101.0,70100.0,0.23948912]
[1730481650797,0.48361363,70101.0,70100.0,0.23148912]
[1730481651225,0.48561363,70101.0,70100.0,0.23148912]
[1730481651441,0.42728832,70101.0,70100.0,0.23148912]
[1730481651682,0.42728832,70101.0,70100.0,0.22648912]
[1730481651683,0.48363311,70101.0,70100.0,0.22648912]
[1730481651900,0.48863311,70101.0,70100.0,0.22648912]
[1730481652331,0.48363311,70101.0,70100.0,0.22648912]
[1730481652541,0.4836639,70101.0,70100.0,0.22648912]
[1730481652758,0.4926639,70101.0,70100.0,0.22748912]
[1730481653001,0.71238467,70101.0,70100.0,0.08024035]
[1730481653246,0.72638467,70101.0,70100.0,0.05270935]
[1730481653685,0.86248467,70101.0,70100.0,0.02317835]
[1730481653906,0.5116639,70101.0,70100.0,3.5e-07]
[1730481654367,0.5066639,70101.0,70100.0,3.5e-07]
[1730481654581,0.5206639,70101.0,70100.0,0.00100035]
[1730481655058,0.48618895,70101.0,70100.0,0.00100035]
[1730481655281,0.53466842,70101.0,70100.0,0.00200035]
[1730481655505,0.52066842,70101.0,70100.0,0.00100035]
[1730481655726,0.53466842,70101.0,70100.0,0.00200035]
[1730481655941,0.51166842,70101.0,70100.0,0.00200035]
[1730481656372,0.46745556,70101.0,70100.0,0.00200035]
[1730481656588,0.36745556,70101.0,70100.0,0.00200035]
[1730481656804,0.37894361,70101.0,70100.0,0.00200035]
[1730481657035,0.3895503,70101.0,70100.0,0.00200035]
[1730481657251,0.36745342,70101.0,70100.0,0.00200035]
[1730481657891,0.46745342,70101.0,70100.0,0.00200035]
[1730481658581,0.46828216,70101.0,70100.0,0.00200035]
[1730481659241,0.49038678,70101.0,70100.0,0.00200035]
[1730481659899,0.47638678,70101.0,70100.0,0.00100035]
[1730481660108,0.46238678,70101.0,70100.0,3.5e-07]
[1730481660317,0.47638678,70101.0,70100.0,0.00100035]
[1730481660530,0.49038678,70101.0,70100.0,0.00200035]
[1730481660745,0.47638678,70101.0,70100.0,0.00100035]
[1730481661193,0.49038678,70101.0,70100.0,0.00200035]
[1730481661415,0.71942369,70101.0,70100.0,0.00200035]
[1730481661632,0.71942369,70101.0,70100.0,3.5e-07]
[1730481661633,0.56559891,70101.0,70100.0,3.5e-07]
[1730481662485,0.57959891,70101.0,70100.0,0.00100035]
[1730481662705,0.74380859,70101.0,70100.0,3.5e-07]
[1730481662939,0.74380859,70101.0,70082.0,0.001644]
[1730481662940,0.242687,70083.0,70082.0,0.001644]
[1730481663177,0.60372101,70083.0,70082.0,0.001644]
[1730481664560,0.54535193,70083.0,70082.0,0.001644]
[1730481664810,0.43948606,70083.0,70082.0,0.001644]
[1730481665048,0.44248606,70083.0,70082.0,0.001644]
[1730481665301,0.46548606,70083.0,70082.0,0.001644]
[1730481665519,0.46248606,70083.0,70082.0,0.001644]
[1730481665737,0.47648606,70083.0,70082.0,0.001644]
[1730481666398,0.49048606,70083.0,70082.0,0.001644]
[1730481666619,0.46748606,70083.0,70082.0,0.001644]
[1730481667349,0.48956485,70083.0,70082.0,0.001644]
[1730481667560,0.47556485,70083.0,70082.0,0.001644]
[1730481667771,0.48956485,70083.0,70082.0,0.001644]
[1730481667986,0.47556485,70083.0,70082.0,0.001644]
[1730481668438,0.46748606,70083.0,70082.0,0.001644]
[1730481668659,0.45348606,70083.0,70082.0,0.001644]
[1730481668878,0.4895746,70083.0,70082.0,0.001644]
[1730481669096,0.4755746,70083.0,70082.0,0.001644]
[1730481669315,0.4895746,70083.0,70082.0,0.001644]
[1730481670455,0.48956505,70083.0,70082.0,0.001644]
[1730481670677,0.32902126,70083.0,70082.0,0.001644]
[1730481670912,0.32902126,70083.0,70082.0,0.257544]
[1730481670913,0.08633426,70083.0,70082.0,0.257544]
[1730481671107,0.05452008,70083.0,70082.0,0.257544]
[1730481671361,0.04126004,70083.0,70082.0,0.257544]
[1730481671807,0.04124821,70083.0,70082.0,0.56460385]
[1730481672037,0.01324821,70083.0,70082.0,0.39599925]
[1730481672281,0.02724821,70083.0,70082.0,0.53868825]
[1730481672525,0.04124821,70083.0,70082.0,0.53868825]
[1730481672772,0.21386562,70092.0,70082.0,0.53868825]
[1730481672773,0.21386562,70092.0,70083.0,0.0775]
[1730481673017,0.02649642,70091.0,70089.0,0.1654]
[1730481673237,0.01324821,70090.0,70089.0,0.1654]
[1730481674197,0.0211924,70097.0,70090.0,0.0775]
[1730481674198,0.001,70092.0,70090.0,0.0775]
[1730481674427,0.01324696,70091.0,70090.0,0.220172]
[1730481674640,0.01324696,70091.0,70090.0,0.45454208]
[1730481674933,0.01324696,70091.0,70090.0,0.31186908]
[1730481675152,0.15591796,70091.0,70090.0,0.0775]
[1730481675383,0.142673,70090.0,70089.0,0.1654]
[1730481675603,0.142673,70090.0,70081.0,0.0775]
[1730481675604,0.142687,70083.0,70081.0,0.0775]
[1730481675824,0.16918057,70083.0,70081.0,0.0775]
[1730481676260,0.19037425,70083.0,70081.0,0.0775]
[1730481677167,0.04768725,70083.0,70081.0,0.0775]
[1730481677430,0.01424696,70083.0,70082.0,0.28878825]
[1730481677664,0.01424696,70083.0,70082.0,0.46218825]
[1730481677887,0.001,70083.0,70082.0,0.46218825]
[1730481678346,0.0132542,70092.0,70090.0,0.142673]
[1730481678610,0.21386562,70093.0,70091.0,0.28112625]
[1730481678828,0.21386562,70093.0,70092.0,0.1743]
[1730481679116,0.142673,70090.0,70089.0,0.0771]
[1730481679605,0.19040973,70090.0,70089.0,0.0771]
[1730481679826,0.20101894,70090.0,70089.0,0.0771]
[1730481680270,0.19040973,70090.0,70089.0,0.0771]
[1730481680488,0.19140973,70090.0,70089.0,0.0841]
[1730481681127,0.19223273,70090.0,70089.0,0.0841]
[1730481682386,0.19221378,70090.0,70089.0,0.0841]
[1730481683021,0.45839035,70090.0,70089.0,0.007]
[1730481683236,0.2028169,70090.0,70089.0,0.007]
[1730481683376,0.20281646,70090.0,70089.0,0.007]
[1730481686087,0.2028262,70090.0,70089.0,0.007]
[1730481686542,0.22492207,70090.0,70089.0,0.007]
[1730481686688,0.2028262,70090.0,70089.0,0.007]
[1730481688287,0.22492207,70090.0,70089.0,0.007]
[1730481689607,0.81945951,70090.0,70089.0,0.007]
[1730481689831,0.65615913,70090.0,70089.0,0.007]
[1730481690123,0.76272936,70090.0,70089.0,0.007]
[1730481690274,0.42999944,70083.0,70082.0,0.001544]
[1730481690494,0.42999944,70083.0,70082.0,1e-06]
[1730481690495,0.69939865,70083.0,70082.0,1e-06]
[1730481690716,0.7126532,70083.0,70082.0,1e-06]
[1730481691155,0.87696564,70083.0,70082.0,1e-06]
[1730481691381,0.43002244,70072.0,70071.0,0.001612]
[1730481691613,0.65771383,70072.0,70071.0,0.001612]
[1730481691829,0.63650654,70072.0,70071.0,0.001612]
[1730481692035,0.3009934,70072.0,70071.0,0.001612]
[1730481692691,0.32305662,70072.0,70071.0,0.001612]
[1730481692924,0.22305662,70072.0,70071.0,0.001612]
[1730481693156,0.2009934,70072.0,70071.0,0.001612]
[1730481693786,0.16996454,70072.0,70071.0,0.001612]
[1730481694024,0.20097996,70072.0,70071.0,0.001612]
[1730481694254,0.20297996,70072.0,70071.0,0.001612]
[1730481694474,0.20797996,70072.0,70071.0,0.001612]
[1730481694687,0.41484558,70072.0,70071.0,0.001612]
[1730481694898,0.20097996,70072.0,70071.0,0.001612]
[1730481695115,0.20197996,70072.0,70071.0,0.001612]
[1730481695320,0.22404635,70072.0,70071.0,0.001612]
[1730481695543,0.20197996,70072.0,70071.0,0.004612]
[1730481696678,0.24268779,70072.0,70071.0,0.004612]
[1730481696883,0.27968007,70072.0,70071.0,0.001612]
[1730481697084,0.23104635,70072.0,70071.0,0.001612]
[1730481697303,0.22504635,70072.0,70071.0,0.001612]
[1730481697527,0.22704635,70072.0,70071.0,0.001612]
[1730481697747,0.21443963,70072.0,70071.0,0.001612]
[1730481697971,0.24618868,70072.0,70071.0,0.001612]
[1730481698187,0.35218868,70072.0,70071.0,0.001612]
[1730481698399,0.36111223,70072.0,70071.0,0.001612]
[1730481698609,0.69137525,70072.0,70071.0,0.001612]
[1730481698811,0.47750963,70072.0,70071.0,0.001612]
[1730481699670,3.89808308,70072.0,70071.0,1e-06]
[1730481699876,3.89808308,70072.0,70057.0,0.001614]
[1730481699877,0.123,70065.0,70057.0,0.001614]
[1730481700090,0.59436288,70058.0,70057.0,0.001614]
[1730481700303,0.69431065,70058.0,70057.0,0.001614]
[1730481700530,0.48829038,70058.0,70057.0,0.001614]
[1730481701196,0.30097794,70058.0,70057.0,0.001614]
[1730481701432,0.30097794,70058.0,70057.0,0.245914]
[1730481701433,0.06165086,70058.0,70057.0,0.245914]
[1730481701670,0.0404314,70058.0,70057.0,0.245914]
[1730481701921,0.16731057,70058.0,70057.0,0.245914]
[1730481702140,0.18395525,70058.0,70057.0,0.245914]
[1730481702779,0.02721725,70058.0,70057.0,0.245914]
[1730481703026,0.02721725,70058.0,70057.0,0.388654]
[1730481703273,0.01921725,70058.0,70057.0,0.388654]
[1730481703561,0.01321725,70058.0,70057.0,0.245914]
[1730481703773,0.15695525,70058.0,70057.0,0.250914]
[1730481703984,0.23185954,70058.0,70057.0,0.250914]
[1730481704341,0.17710286,70058.0,70057.0,0.245914]
[1730481704549,0.15795525,70058.0,70057.0,0.250914]
[1730481704751,0.15695525,70058.0,70057.0,0.250914]
[1730481704977,0.15595525,70058.0,70057.0,0.245914]
[1730481705404,0.15695525,70058.0,70057.0,0.250914]
[1730481705649,0.18867956,70058.0,70057.0,0.006614]
[1730481705855,0.20190061,70058.0,70057.0,0.006614]
[1730481706713,0.15695525,70058.0,70057.0,0.006614]
[1730481707157,0.15595525,70058.0,70057.0,0.001614]
[1730481707362,0.15595525,70058.0,70057.0,0.006614]
[1730481707363,0.16995525,70058.0,70057.0,0.006614]
[1730481707572,0.15695525,70058.0,70057.0,0.006614]
[1730481707778,0.01421725,70058.0,70057.0,0.006614]
[1730481707986,0.01321725,70058.0,70057.0,0.001614]
[1730481708228,0.01321725,70058.0,70057.0,0.006614]
[1730481708452,0.01421725,70058.0,70057.0,0.006614]
[1730481708686,0.01321725,70058.0,70057.0,0.249314]
[1730481709104,0.01421725,70058.0,70057.0,0.254314]
[1730481709617,0.01521725,70058.0,70057.0,0.254314]
[1730481709864,0.15695525,70058.0,70057.0,0.254314]
[1730481710305,0.01521725,70058.0,70057.0,0.254314]
[1730481710543,0.01521725,70058.0,70057.0,0.249314]
[1730481710544,0.01421725,70058.0,70057.0,0.249314]
[1730481710758,0.01521725,70058.0,70057.0,0.254314]
[1730481710978,0.01421725,70058.0,70057.0,0.254314]
[1730481711185,0.01421725,70058.0,70057.0,0.4603099]
[1730481711394,0.01421725,70058.0,70057.0,0.392054]
[1730481711623,0.01521725,70058.0,70057.0,0.397054]
[1730481712100,0.01521725,70058.0,70057.0,0.254314]
[1730481712371,0.01521725,70058.0,70057.0,0.249314]
[1730481712372,0.15695525,70058.0,70057.0,0.249314]
[1730481712582,0.48687795,70058.0,70057.0,0.006614]
[1730481712784,0.71589822,70058.0,70057.0,0.006614]
[1730481713011,0.49763551,70058.0,70057.0,0.006614]
[1730481713252,0.49663551,70058.0,70057.0,0.006614]
[1730481713485,0.50987554,70058.0,70057.0,0.006614]
[1730481713704,0.50887554,70058.0,70057.0,0.001614]
[1730481714131,0.51687554,70058.0,70057.0,0.006614]
[1730481714563,0.51587554,70058.0,70057.0,0.001614]
[1730481715038,0.51887554,70058.0,70057.0,0.001614]
[1730481715698,0.51892365,70058.0,70057.0,0.001614]
[1730481716596,0.53217884,70058.0,70057.0,0.001614]
[1730481716804,0.53217884,70058.0,70048.0,0.001614]
[1730481716805,0.123,70057.0,70048.0,0.001614]
[1730481717028,0.242757,70049.0,70048.0,0.001614]
[1730481717269,0.43949453,70049.0,70048.0,0.001614]
[1730481717503,0.5905593,70049.0,70048.0,0.001614]
[1730481717936,0.5905593,70049.0,70048.0,0.006614]
[1730481717937,0.42624686,70049.0,70048.0,0.006614]
[1730481718411,0.63701781,70049.0,70048.0,0.006614]
[1730481718670,0.63701781,70049.0,70048.0,0.001614]
[1730481719346,0.5905593,70049.0,70048.0,0.001614]
[1730481719828,0.5965593,70049.0,70048.0,0.001614]
[1730481720060,0.55152469,70049.0,70048.0,0.001614]
[1730481720291,0.59660289,70049.0,70048.0,0.001614]
[1730481720516,0.6098615,70049.0,70048.0,0.001614]
[1730481722571,0.6098573,70049.0,70048.0,0.001614]
[1730481723248,0.44554486,70049.0,70048.0,0.001614]
[1730481723484,0.43228872,70049.0,70048.0,0.001614]
[1730481724466,0.19383347,70049.0,70048.0,0.080414]
[1730481724911,0.21593352,70049.0,70048.0,0.080414]
[1730481725126,0.42979914,70049.0,70048.0,0.080414]
[1730481725354,0.54615434,70049.0,70048.0,0.001614]
[1730481725594,0.32728872,70049.0,70048.0,0.001614]
[1730481725839,0.42628872,70049.0,70048.0,0.001614]
[1730481726071,0.42629205,70049.0,70048.0,0.003614]
[1730481726353,0.42729205,70049.0,70048.0,0.003614]
[1730481726579,0.42629205,70049.0,70048.0,0.001614]
[1730481727023,0.43229205,70049.0,70048.0,0.001614]
[1730481728526,0.4765105,70049.0,70048.0,0.001614]
[1730481729179,0.43229205,70049.0,70048.0,0.001614]
[1730481729406,0.18322856,70049.0,70048.0,0.001614]
[1730481729862,0.19383939,70049.0,70048.0,0.001614]
[1730481732592,0.20710443,70049.0,70048.0,0.001614]
[1730481732837,0.19383939,70049.0,70048.0,0.001614]
[1730481733055,0.15936865,70049.0,70048.0,0.001614]
[1730481733276,0.23810857,70049.0,70048.0,0.001614]
[1730481733511,0.47656382,70049.0,70048.0,0.001614]
[1730481733726,0.46595217,70049.0,70048.0,0.001614]
[1730481733980,0.47656498,70049.0,70048.0,0.001614]
[1730481734616,0.48983189,70049.0,70048.0,0.001614]
[1730481735508,0.48983189,70049.0,70047.0,0.00122892]
[1730481735509,0.40707144,70048.0,70047.0,0.00122892]
[1730481735744,0.70076534,70048.0,70047.0,9.2e-07]
[1730481735980,0.65787942,70048.0,70047.0,9.2e-07]
[1730481736410,0.64726661,70048.0,70047.0,9.2e-07]
[1730481736851,0.61277825,70048.0,70047.0,9.2e-07]
[1730481737074,0.62677825,70048.0,70047.0,9.2e-07]
[1730481737293,0.65139027,70048.0,70047.0,9.2e-07]
[1730481737994,0.66200416,70048.0,70047.0,9.2e-07]
[1730481738214,0.64800416,70048.0,70047.0,9.2e-07]
[1730481738652,0.66200416,70048.0,70047.0,9.2e-07]
[1730481738909,0.64800416,70048.0,70047.0,9.2e-07]
[1730481739123,0.66200416,70048.0,70047.0,9.2e-07]
[1730481739547,0.66200753,70048.0,70047.0,9.2e-07]
[1730481740495,0.65139027,70048.0,70047.0,9.2e-07]
[1730481740910,0.68592721,70048.0,70047.0,9.2e-07]
[1730481741533,0.66292721,70048.0,70047.0,9.2e-07]
[1730481741789,0.36015952,70048.0,70047.0,9.2e-07]
[1730481742199,0.26015952,70048.0,70047.0,9.2e-07]
[1730481742794,0.56292721,70048.0,70047.0,9.2e-07]
[1730481742998,0.60581313,70048.0,70047.0,9.2e-07]
[1730481743225,0.56156157,70048.0,70047.0,9.2e-07]
[1730481743427,0.60467565,70048.0,70047.0,9.2e-07]
[1730481743629,0.68596748,70048.0,70047.0,9.2e-07]
[1730481744044,0.61781852,70048.0,70047.0,9.2e-07]
[1730481744236,0.64905903,70048.0,70047.0,9.2e-07]
[1730481744661,0.64905903,70048.0,70047.0,0.00100092]
[1730481745088,0.64905903,70048.0,70047.0,9.2e-07]
[1730481745312,0.63505903,70048.0,70047.0,9.2e-07]
[1730481745547,0.64905903,70048.0,70047.0,9.2e-07]
[1730481745761,0.66305903,70048.0,70047.0,9.2e-07]
[1730481746188,0.64905903,70048.0,70047.0,9.2e-07]
[1730481746423,0.66305903,70048.0,70047.0,9.2e-07]
[1730481746873,0.36029134,70048.0,70047.0,9.2e-07]
[1730481747498,0.52460378,70048.0,70047.0,9.2e-07]
[1730481747727,0.49000807,70048.0,70047.0,9.2e-07]
[1730481748243,0.52461332,70048.0,70047.0,9.2e-07]
[1730481750246,0.52463112,70048.0,70047.0,9.2e-07]
[1730481750463,0.52463112,70048.0,70041.0,0.00164]
[1730481750464,0.142771,70042.0,70041.0,0.00164]
[1730481750691,0.18803885,70042.0,70041.0,0.00164]
[1730481750899,0.23244587,70042.0,70041.0,0.00164]
[1730481751320,0.18803885,70042.0,70041.0,0.00164]
[1730481751528,0.23244441,70042.0,70041.0,0.00164]
[1730481751753,0.23944441,70042.0,70041.0,0.00164]
[1730481751974,0.23946799,70042.0,70041.0,0.00164]
[1730481752431,0.06558289,70042.0,70041.0,0.38919525]
[1730481752656,0.04254194,70060.0,70041.0,0.38919525]
[1730481752657,0.000823,70048.0,70046.0,0.142763]
[1730481752889,0.21468862,70064.0,70053.0,0.142749]
[1730481752890,0.21386562,70054.0,70053.0,0.142749]
[1730481753104,0.21468862,70064.0,70056.0,0.391842]
[1730481753352,0.21468862,70064.0,70056.0,0.69460969]
[1730481753780,0.50014162,70064.0,70056.0,0.53029725]
[1730481753977,0.21468862,70064.0,70056.0,0.53029725]
[1730481754193,0.142729,70063.0,70056.0,0.53029725]
[1730481754411,0.50014462,70064.0,70056.0,0.53029725]
[1730481754653,0.285472,70060.0,70056.0,0.2491]
[1730481754865,0.143563,70057.0,70056.0,0.2491]
[1730481755080,0.000823,70057.0,70056.0,0.27401]
[1730481755292,0.143563,70057.0,70056.0,0.27401]
[1730481755506,0.145563,70057.0,70056.0,0.28401]
[1730481755720,0.144563,70057.0,70056.0,0.27701]
[1730481755989,0.000823,70057.0,70056.0,0.27401]
[1730481756203,0.144563,70057.0,70056.0,0.28201]
[1730481757327,0.145563,70057.0,70056.0,0.28501]
[1730481757554,0.001823,70057.0,70056.0,0.55820725]
[1730481757754,0.000823,70064.0,70063.0,0.397828]
[1730481757967,0.000823,70064.0,70063.0,0.60461325]
[1730481759065,0.001823,70064.0,70063.0,0.61161325]
[1730481759742,0.144549,70064.0,70063.0,0.2621]
[1730481760391,0.143549,70064.0,70063.0,0.2551]
[1730481760598,0.144549,70064.0,70063.0,0.2591]
[1730481760811,0.145549,70064.0,70063.0,0.2661]
[1730481761085,0.143549,70064.0,70063.0,0.2551]
[1730481761299,0.001823,70064.0,70063.0,0.46888655]
[1730481761512,0.002823,70064.0,70063.0,0.61661455]
[1730481762152,0.002823,70064.0,70063.0,0.78092699]
[1730481762417,0.002823,70064.0,70063.0,0.61661455]
[1730481772616,0.001823,70064.0,70063.0,0.61161455]
[1730481772835,0.144549,70064.0,70063.0,0.09]
[1730481773054,0.145549,70064.0,70063.0,0.094]
[1730481773276,0.15880743,70064.0,70063.0,0.094]
[1730481773925,0.15880743,70064.0,70063.0,0.087]
[1730481774133,0.15680743,70064.0,70063.0,0.083]
[1730481774334,0.15880743,70064.0,70063.0,0.099]
[1730481774603,0.37167305,70064.0,70063.0,0.004]
[1730481774820,0.15780743,70064.0,70063.0,0.004]
[1730481775045,0.18003127,70064.0,70063.0,0.01]
[1730481775267,0.18003127,70064.0,70063.0,0.004]
[1730481775475,0.39389689,70064.0,70063.0,0.004]
[1730481775680,0.18003127,70064.0,70063.0,0.004]
[1730481775933,0.17903127,70064.0,70063.0,0.004]
[1730481776371,0.3842676,70064.0,70063.0,0.013]
[1730481776816,0.3842676,70064.0,70063.0,0.004]
[1730481776817,0.44138168,70064.0,70063.0,0.004]
[1730481777045,0.142738,70058.0,70057.0,0.001644]
[1730481777282,0.22325048,70058.0,70057.0,0.001644]
[1730481777525,0.20111543,70058.0,70057.0,0.001644]
[1730481778190,0.18784076,70058.0,70057.0,0.001644]
[1730481778607,0.18884076,70058.0,70057.0,0.001644]
[1730481779030,0.20213121,70058.0,70057.0,0.001644]
[1730481780120,0.20213121,70058.0,70057.0,0.004644]
[1730481780322,0.20225888,70058.0,70057.0,0.004644]
[1730481781195,0.18896843,70058.0,70057.0,0.004644]
[1730481781885,0.32742368,70058.0,70057.0,0.004644]
[1730481782095,0.42742368,70058.0,70057.0,0.004644]